[Event "Early-Titled-Tuesday-Blitz-December-26-2023"]
[Site "Chess.com"]
[Date "2023.12.26"]
[Round "9"]
[White "BilodeauA"]
[Black "frederiksvane"]
[Result "0-1"]
[WhiteElo "2889"]
[BlackElo "2973"]
[TimeControl "180+1"]
[EndTime "9:45:58 PST"]
[Termination "frederiksvane won by resignation"]

1. e4 {[%clk 0:03:00.9]} 1... e5 {[%clk 0:03:00]} 2. Nf3 {[%clk 0:03:01.1]} 2...
Nc6 {[%clk 0:03:00.3]} 3. Bc4 {[%clk 0:03:01.8]} 3... Nf6 {[%clk 0:03:00.4]} 4.
d3 {[%clk 0:03:02.3]} 4... Bc5 {[%clk 0:03:00.6]} 5. h3 {[%clk 0:02:59.5]} 5...
O-O {[%clk 0:02:57.1]} 6. Nc3 {[%clk 0:02:59.2]} 6... a6 {[%clk 0:02:47.8]} 7.
a3 {[%clk 0:02:54.3]} 7... Re8 {[%clk 0:02:15.5]} 8. Be3 {[%clk 0:02:50.2]} 8...
d6 {[%clk 0:02:12.4]} 9. Bxc5 {[%clk 0:02:47]} 9... dxc5 {[%clk 0:02:12.6]} 10.
O-O {[%clk 0:02:47.5]} 10... b6 {[%clk 0:02:03.9]} 11. Ng5 {[%clk 0:02:39.7]}
11... Rf8 {[%clk 0:02:03.9]} 12. a4 {[%clk 0:02:15.8]} 12... Qd6 {[%clk
0:01:58]} 13. Qd2 {[%clk 0:02:09.1]} 13... h6 {[%clk 0:01:57.6]} 14. Nf3 {[%clk
0:02:09.2]} 14... Be6 {[%clk 0:01:58.3]} 15. Bxe6 {[%clk 0:02:08.7]} 15... Qxe6
{[%clk 0:01:59.2]} 16. Nh4 {[%clk 0:02:06.9]} 16... Nd4 {[%clk 0:01:55.9]} 17.
f4 {[%clk 0:02:05.8]} 17... exf4 {[%clk 0:01:55.1]} 18. Nf3 {[%clk 0:01:52.9]}
18... Nxf3+ {[%clk 0:01:42]} 19. Rxf3 {[%clk 0:01:53.8]} 19... c4 {[%clk
0:01:42.8]} 20. Rxf4 {[%clk 0:01:50.6]} 20... cxd3 {[%clk 0:01:42.8]} 21. cxd3
{[%clk 0:01:51.3]} 21... Rad8 {[%clk 0:01:40.3]} 22. Raf1 {[%clk 0:01:51.7]}
22... Nd7 {[%clk 0:01:35.6]} 23. d4 {[%clk 0:01:48.1]} 23... c6 {[%clk
0:01:34.6]} 24. Kh1 {[%clk 0:01:39.2]} 24... b5 {[%clk 0:01:22.4]} 25. axb5
{[%clk 0:01:39.4]} 25... axb5 {[%clk 0:01:23.3]} 26. d5 {[%clk 0:01:40]} 26...
cxd5 {[%clk 0:01:13.6]} 27. exd5 {[%clk 0:01:40.9]} 27... Qb6 {[%clk 0:01:12.1]}
28. d6 {[%clk 0:01:28.7]} 28... Ne5 {[%clk 0:01:11.3]} 29. Ne4 {[%clk
0:01:26.5]} 29... Nc4 {[%clk 0:01:06.6]} 30. Nf6+ {[%clk 0:00:55.1]} 30... Kh8
{[%clk 0:00:44.8]} 31. Qd3 {[%clk 0:00:52.4]} 31... gxf6 {[%clk 0:00:34.6]} 32.
Rh4 {[%clk 0:00:52.2]} 32... Qe3 {[%clk 0:00:35.1]} 33. Qf5 {[%clk 0:00:25.6]}
33... Qg5 {[%clk 0:00:33.5]} 34. Qxf6+ {[%clk 0:00:26.2]} 34... Qxf6 {[%clk
0:00:32.1]} 35. Rxf6 {[%clk 0:00:27.1]} 35... Kg7 {[%clk 0:00:28.6]} 36. Rfxh6
{[%clk 0:00:27.3]} 36... Nxd6 {[%clk 0:00:28]} 37. R6h5 {[%clk 0:00:24.7]} 37...
Rh8 {[%clk 0:00:21.7]} 38. Rg4+ {[%clk 0:00:24.1]} 38... Kf6 {[%clk 0:00:22.3]}
39. Rd5 {[%clk 0:00:24.8]} 39... Ke6 {[%clk 0:00:22.2]} 40. Rd1 {[%clk
0:00:24.5]} 40... Nc4 {[%clk 0:00:19.2]} 41. Re1+ {[%clk 0:00:24.3]} 41... Ne5
{[%clk 0:00:19.7]} 42. Rf4 {[%clk 0:00:20.6]} 42... f6 {[%clk 0:00:17.5]} 43.
Ref1 {[%clk 0:00:21.1]} 43... Rh6 {[%clk 0:00:17.7]} 44. Rb4 {[%clk 0:00:19.6]}
44... Rd5 {[%clk 0:00:18]} 45. Rbf4 {[%clk 0:00:20.4]} 45... Nd3 {[%clk
0:00:17.5]} 46. Re4+ {[%clk 0:00:19.3]} 46... Re5 {[%clk 0:00:18]} 47. Rxe5+
{[%clk 0:00:19.7]} 47... fxe5 {[%clk 0:00:18.1]} 48. Rf8 {[%clk 0:00:19.4]}
48... e4 {[%clk 0:00:18]} 49. Kg1 {[%clk 0:00:19.1]} 49... Rf6 {[%clk
0:00:17.1]} 50. Rb8 {[%clk 0:00:19.2]} 50... Kd5 {[%clk 0:00:13.3]} 51. Rxb5+
{[%clk 0:00:17.9]} 51... Kd4 {[%clk 0:00:13.7]} 52. Rb8 {[%clk 0:00:17.4]} 52...
e3 {[%clk 0:00:14.2]} 53. Rd8+ {[%clk 0:00:11.4]} 53... Ke4 {[%clk 0:00:14.5]}
54. Re8+ {[%clk 0:00:09.8]} 54... Ne5 {[%clk 0:00:14.9]} 0-1

[Event "Early-Titled-Tuesday-Blitz-December-26-2023"]
[Site "Chess.com"]
[Date "2023.12.26"]
[Round "9"]
[White "Keaton87"]
[Black "R2D2PTY"]
[Result "1-0"]
[WhiteElo "2652"]
[BlackElo "2256"]
[TimeControl "180+1"]
[EndTime "9:45:58 PST"]
[Termination "Keaton87 won by resignation"]

1. e4 {[%clk 0:02:57.2]} 1... e5 {[%clk 0:02:59.1]} 2. Ke2 {[%clk 0:02:58]} 2...
Nc6 {[%clk 0:02:58.8]} 3. c3 {[%clk 0:02:57.5]} 3... Nf6 {[%clk 0:02:57]} 4. d3
{[%clk 0:02:57]} 4... d5 {[%clk 0:02:54.9]} 5. Nd2 {[%clk 0:02:55.9]} 5... Bc5
{[%clk 0:02:48.2]} 6. Ngf3 {[%clk 0:02:47.6]} 6... Ng4 {[%clk 0:02:42.6]} 7.
exd5 {[%clk 0:02:45.2]} 7... Nxf2 {[%clk 0:02:42]} 8. Qb3 {[%clk 0:02:32.7]}
8... Nxh1 {[%clk 0:01:54.3]} 9. dxc6 {[%clk 0:02:30.4]} 9... bxc6 {[%clk
0:01:45.8]} 10. Qc4 {[%clk 0:02:14]} 10... Bd6 {[%clk 0:01:42.1]} 11. g3 {[%clk
0:02:08.7]} 11... O-O {[%clk 0:01:33.9]} 12. Bg2 {[%clk 0:02:06.2]} 12... Be6
{[%clk 0:01:34.1]} 13. Qxc6 {[%clk 0:02:05.5]} 13... f5 {[%clk 0:01:23.1]} 14.
Bxh1 {[%clk 0:02:03]} 14... e4 {[%clk 0:01:23.8]} 15. Nd4 {[%clk 0:01:58.6]}
15... Bd7 {[%clk 0:01:08.7]} 16. Qd5+ {[%clk 0:01:57.6]} 16... Kh8 {[%clk
0:01:09.4]} 17. dxe4 {[%clk 0:01:50.1]} 17... fxe4 {[%clk 0:01:09.3]} 18. Nxe4
{[%clk 0:01:49.3]} 18... Bg4+ {[%clk 0:01:08.4]} 19. Kd3 {[%clk 0:01:46.4]}
19... Qc8 {[%clk 0:00:43.5]} 20. Nxd6 {[%clk 0:01:40.9]} 20... cxd6 {[%clk
0:00:43.7]} 21. Bf4 {[%clk 0:01:35.9]} 21... Qa6+ {[%clk 0:00:41]} 22. Qb5
{[%clk 0:01:26.6]} 22... Qc8 {[%clk 0:00:18.2]} 23. Bxa8 {[%clk 0:01:23.3]}
23... Qxa8 {[%clk 0:00:18.8]} 24. Re1 {[%clk 0:01:19.6]} 24... Rb8 {[%clk
0:00:15.5]} 25. Qc6 {[%clk 0:01:07.8]} 25... Bf5+ {[%clk 0:00:15.5]} 26. Kc4
{[%clk 0:01:01]} 26... Rc8 {[%clk 0:00:12.2]} 27. Re8+ {[%clk 0:00:54.5]} 27...
Rxe8 {[%clk 0:00:11.7]} 28. Qxa8 {[%clk 0:00:54.8]} 28... Rxa8 {[%clk
0:00:12.6]} 29. Bxd6 {[%clk 0:00:53.4]} 29... Kg8 {[%clk 0:00:11.9]} 30. Kd5
{[%clk 0:00:51.9]} 30... Bg6 {[%clk 0:00:11.2]} 31. b3 {[%clk 0:00:22.7]} 31...
Re8 {[%clk 0:00:10.6]} 32. c4 {[%clk 0:00:17.9]} 32... Re1 {[%clk 0:00:08.7]}
33. c5 {[%clk 0:00:15.3]} 33... Be4+ {[%clk 0:00:08.8]} 34. Kc4 {[%clk
0:00:13.7]} 34... Rd1 {[%clk 0:00:05.2]} 35. a4 {[%clk 0:00:10.2]} 35... Kf7
{[%clk 0:00:04.4]} 36. Be5 {[%clk 0:00:08.4]} 36... Rc1+ {[%clk 0:00:02.7]} 37.
Kb5 {[%clk 0:00:07.3]} 37... Ke7 {[%clk 0:00:01.9]} 38. Bxg7 {[%clk 0:00:05.7]}
38... Kd7 {[%clk 0:00:01.7]} 39. b4 {[%clk 0:00:05]} 39... Bd3+ {[%clk
0:00:01.1]} 40. Ka5 {[%clk 0:00:04.7]} 40... Rc4 {[%clk 0:00:01.5]} 41. Be5
{[%clk 0:00:04.5]} 41... Be4 {[%clk 0:00:01.5]} 42. b5 {[%clk 0:00:03.5]} 42...
Bd5 {[%clk 0:00:01.5]} 43. c6+ {[%clk 0:00:03.7]} 43... Kc8 {[%clk 0:00:02.3]}
44. Nf5 {[%clk 0:00:02.7]} 44... Re4 {[%clk 0:00:02.2]} 45. Nd6+ {[%clk
0:00:03.6]} 45... Kc7 {[%clk 0:00:02.5]} 46. Nxe4+ {[%clk 0:00:04.3]} 1-0

[Event "Early-Titled-Tuesday-Blitz-December-26-2023"]
[Site "Chess.com"]
[Date "2023.12.26"]
[Round "9"]
[White "bubeliang"]
[Black "Dinosaurio_1975"]
[Result "0-1"]
[WhiteElo "2762"]
[BlackElo "2631"]
[TimeControl "180+1"]
[EndTime "9:46:01 PST"]
[Termination "Dinosaurio_1975 won by checkmate"]

1. e4 {[%clk 0:02:58]} 1... c6 {[%clk 0:02:58.8]} 2. d4 {[%clk 0:02:56]} 2... d5
{[%clk 0:02:59.7]} 3. Nc3 {[%clk 0:02:53.8]} 3... dxe4 {[%clk 0:02:59.4]} 4.
Nxe4 {[%clk 0:02:54.7]} 4... Nf6 {[%clk 0:02:58.2]} 5. Ng5 {[%clk 0:02:51.8]}
5... h6 {[%clk 0:02:55.2]} 6. Nxf7 {[%clk 0:02:51.8]} 6... Kxf7 {[%clk
0:02:54.2]} 7. Nf3 {[%clk 0:02:52.7]} 7... Nbd7 {[%clk 0:02:21.8]} 8. Bc4+
{[%clk 0:02:49.6]} 8... e6 {[%clk 0:02:19.3]} 9. O-O {[%clk 0:02:47.6]} 9... Bd6
{[%clk 0:02:17.3]} 10. Re1 {[%clk 0:02:47]} 10... Re8 {[%clk 0:02:15.3]} 11. Bd3
{[%clk 0:02:38.5]} 11... Kg8 {[%clk 0:02:12.8]} 12. Ne5 {[%clk 0:02:25.9]} 12...
c5 {[%clk 0:01:46.1]} 13. Bxh6 {[%clk 0:01:52.3]} 13... gxh6 {[%clk 0:01:34.5]}
14. Qf3 {[%clk 0:01:51.6]} 14... Qe7 {[%clk 0:01:23.4]} 15. c3 {[%clk 0:01:42]}
15... cxd4 {[%clk 0:01:21.9]} 16. cxd4 {[%clk 0:01:42.9]} 16... Qg7 {[%clk
0:01:10.6]} 17. Re3 {[%clk 0:01:35]} 17... Bxe5 {[%clk 0:01:01.1]} 18. dxe5
{[%clk 0:01:29.9]} 18... Nd5 {[%clk 0:01:01.1]} 19. Re4 {[%clk 0:01:09.5]} 19...
Nxe5 {[%clk 0:01:00.9]} 20. Qe2 {[%clk 0:01:07.1]} 20... Kh8 {[%clk 0:00:24.3]}
21. Bc2 {[%clk 0:00:42.8]} 21... Rg8 {[%clk 0:00:14.6]} 22. g3 {[%clk 0:00:42]}
22... Nf7 {[%clk 0:00:11.5]} 23. Re1 {[%clk 0:00:37.9]} 23... e5 {[%clk
0:00:11.6]} 24. Bb3 {[%clk 0:00:32.6]} 24... Nf6 {[%clk 0:00:11.8]} 25. Rh4
{[%clk 0:00:28.8]} 25... Bg4 {[%clk 0:00:10.4]} 26. Qe3 {[%clk 0:00:27]} 26...
Raf8 {[%clk 0:00:06.7]} 27. h3 {[%clk 0:00:24.8]} 27... Bf5 {[%clk 0:00:06.3]}
28. g4 {[%clk 0:00:22.1]} 28... Qg5 {[%clk 0:00:05.5]} 29. Qxg5 {[%clk
0:00:15.2]} 29... Rxg5 {[%clk 0:00:06.4]} 30. Kh2 {[%clk 0:00:12.2]} 30... Bh7
{[%clk 0:00:05.1]} 31. Bxf7 {[%clk 0:00:11]} 31... Rxf7 {[%clk 0:00:06]} 32.
Rxh6 {[%clk 0:00:11.4]} 32... Kg7 {[%clk 0:00:05.9]} 33. Rh4 {[%clk 0:00:11.5]}
33... e4 {[%clk 0:00:06.2]} 34. Kg3 {[%clk 0:00:10.5]} 34... Nd5 {[%clk
0:00:06.4]} 35. Rd1 {[%clk 0:00:10]} 35... Rf3+ {[%clk 0:00:06.7]} 36. Kg2
{[%clk 0:00:09.6]} 36... Nf4+ {[%clk 0:00:07.3]} 37. Kf1 {[%clk 0:00:08.3]}
37... Rd5 {[%clk 0:00:06.8]} 38. Rc1 {[%clk 0:00:07.4]} 38... Rd7 {[%clk
0:00:03.9]} 39. g5 {[%clk 0:00:05.7]} 39... e3 {[%clk 0:00:03.9]} 40. Kg1 {[%clk
0:00:03.7]} 40... Rxf2 {[%clk 0:00:04.4]} 41. g6 {[%clk 0:00:02.7]} 41... Ne2+
{[%clk 0:00:04.9]} 42. Kh1 {[%clk 0:00:03.1]} 42... Bxg6 {[%clk 0:00:04.3]} 43.
Re1 {[%clk 0:00:02.7]} 43... Ng3+ {[%clk 0:00:04.7]} 44. Kg1 {[%clk 0:00:03.6]}
44... Ne2+ {[%clk 0:00:04]} 45. Kh1 {[%clk 0:00:03.9]} 45... Be4+ {[%clk
0:00:04.6]} 46. Rxe4 {[%clk 0:00:03.6]} 46... Ng3+ {[%clk 0:00:05.3]} 47. Kg1
{[%clk 0:00:04.5]} 47... Nxe4 {[%clk 0:00:06.2]} 48. Rxe3 {[%clk 0:00:05.4]}
48... Rd1+ {[%clk 0:00:05.1]} 49. Re1 {[%clk 0:00:05.3]} 49... Rxe1# {[%clk
0:00:06]} 0-1

[Event "Early-Titled-Tuesday-Blitz-December-26-2023"]
[Site "Chess.com"]
[Date "2023.12.26"]
[Round "9"]
[White "marvinguevara"]
[Black "Ducke13"]
[Result "1-0"]
[WhiteElo "2236"]
[BlackElo "2388"]
[TimeControl "180+1"]
[EndTime "9:46:03 PST"]
[Termination "marvinguevara won on time"]

1. e4 {[%clk 0:03:00.9]} 1... c5 {[%clk 0:01:48.6]} 2. d4 {[%clk 0:02:59.5]}
2... cxd4 {[%clk 0:01:48.4]} 3. c3 {[%clk 0:02:59.5]} 3... dxc3 {[%clk
0:01:48.4]} 4. Nxc3 {[%clk 0:03:00.4]} 4... d6 {[%clk 0:01:48]} 5. Bc4 {[%clk
0:02:58.5]} 5... Nc6 {[%clk 0:01:48.3]} 6. Nf3 {[%clk 0:02:58]} 6... a6 {[%clk
0:01:48.7]} 7. O-O {[%clk 0:02:56.8]} 7... Nf6 {[%clk 0:01:46.1]} 8. Qe2 {[%clk
0:02:55.6]} 8... Bg4 {[%clk 0:01:45.3]} 9. Rd1 {[%clk 0:02:43.8]} 9... e6 {[%clk
0:01:32.8]} 10. Bf4 {[%clk 0:02:30.5]} 10... Qa5 {[%clk 0:01:18.8]} 11. h3
{[%clk 0:02:23.1]} 11... Bxf3 {[%clk 0:01:18]} 12. Qxf3 {[%clk 0:02:19.8]} 12...
Be7 {[%clk 0:01:07.2]} 13. Qg3 {[%clk 0:02:06.4]} 13... Nh5 {[%clk 0:00:53.2]}
14. Qg4 {[%clk 0:01:58.2]} 14... Nxf4 {[%clk 0:00:51]} 15. Qxf4 {[%clk
0:01:59.1]} 15... O-O {[%clk 0:00:46.6]} 16. Bb3 {[%clk 0:01:47.9]} 16... Rac8
{[%clk 0:00:42.6]} 17. Rd3 {[%clk 0:01:39.2]} 17... Ne5 {[%clk 0:00:31.4]} 18.
Rg3 {[%clk 0:01:37.6]} 18... Ng6 {[%clk 0:00:31.8]} 19. Qg4 {[%clk 0:01:23.6]}
19... Rc5 {[%clk 0:00:23.2]} 20. f4 {[%clk 0:01:20.2]} 20... Bf6 {[%clk
0:00:07.4]} 21. Rf1 {[%clk 0:01:06.5]} 21... Rfc8 {[%clk 0:00:06.6]} 22. f5
{[%clk 0:00:59]} 22... exf5 {[%clk 0:00:06.5]} 23. exf5 {[%clk 0:00:58.2]} 23...
Ne5 {[%clk 0:00:06.4]} 24. Qh5 {[%clk 0:00:52.5]} 24... Qd8 {[%clk 0:00:06.2]}
25. Ne4 {[%clk 0:00:48.9]} 25... Qe7 {[%clk 0:00:05.6]} 26. Qh6 {[%clk
0:00:43.8]} 26... Kf8 {[%clk 0:00:04.7]} 27. Qxh7 {[%clk 0:00:42.2]} 27... Ke8
{[%clk 0:00:05.1]} 28. Nxc5 {[%clk 0:00:34.8]} 28... Rxc5 {[%clk 0:00:04.6]} 29.
Kh1 {[%clk 0:00:33.6]} 29... Kd7 {[%clk 0:00:04.6]} 30. Qh5 {[%clk 0:00:31.3]}
30... b5 {[%clk 0:00:04.8]} 31. a4 {[%clk 0:00:29.2]} 31... Nc6 {[%clk
0:00:04.6]} 32. axb5 {[%clk 0:00:28.9]} 32... axb5 {[%clk 0:00:05.5]} 33. Qf3
{[%clk 0:00:24.8]} 33... Bxb2 {[%clk 0:00:05.2]} 34. f6 {[%clk 0:00:21.4]} 34...
gxf6 {[%clk 0:00:05.1]} 35. Rg7 {[%clk 0:00:17.2]} 35... Be5 {[%clk 0:00:05.2]}
36. Rxf7 {[%clk 0:00:17]} 36... Rc3 {[%clk 0:00:03.3]} 37. Rxe7+ {[%clk
0:00:16.8]} 37... Nxe7 {[%clk 0:00:03.8]} 38. Qg4+ {[%clk 0:00:16.9]} 38... Kc7
{[%clk 0:00:03.8]} 39. Qe6 {[%clk 0:00:16.5]} 39... Nc6 {[%clk 0:00:02.6]} 40.
Bd5 {[%clk 0:00:16.1]} 40... Kb6 {[%clk 0:00:01.9]} 41. Qd7 {[%clk 0:00:15.1]}
41... Nd4 {[%clk 0:00:01.7]} 42. Qb7+ {[%clk 0:00:15.2]} 42... Ka5 {[%clk
0:00:01.8]} 43. Ra1+ {[%clk 0:00:15.5]} 43... Kb4 {[%clk 0:00:01.9]} 44. Qa6
{[%clk 0:00:14.2]} 44... Nb3 {[%clk 0:00:01.8]} 45. Bxb3 {[%clk 0:00:13.8]}
45... Rxb3 {[%clk 0:00:01.4]} 46. Qa5+ {[%clk 0:00:14.4]} 46... Kc4 {[%clk
0:00:01.6]} 47. Rc1+ {[%clk 0:00:15.1]} 47... Kd5 {[%clk 0:00:01.9]} 48. Qd2+
{[%clk 0:00:15.4]} 1-0

[Event "Early-Titled-Tuesday-Blitz-December-26-2023"]
[Site "Chess.com"]
[Date "2023.12.26"]
[Round "9"]
[White "FunnyDuck66"]
[Black "GiorgianBarbosa"]
[Result "1-0"]
[WhiteElo "2481"]
[BlackElo "2474"]
[TimeControl "180+1"]
[EndTime "9:46:04 PST"]
[Termination "FunnyDuck66 won by checkmate"]

1. d4 {[%clk 0:02:55.1]} 1... Nf6 {[%clk 0:02:58.1]} 2. Nf3 {[%clk 0:02:54.2]}
2... e6 {[%clk 0:02:59]} 3. Bg5 {[%clk 0:02:54]} 3... Be7 {[%clk 0:02:58.5]} 4.
Nbd2 {[%clk 0:02:54.1]} 4... O-O {[%clk 0:02:59]} 5. c3 {[%clk 0:02:54.3]} 5...
d5 {[%clk 0:02:59.4]} 6. e3 {[%clk 0:02:54.8]} 6... c5 {[%clk 0:02:57.7]} 7. Bd3
{[%clk 0:02:55.2]} 7... b6 {[%clk 0:02:57]} 8. O-O {[%clk 0:02:54.9]} 8... Ba6
{[%clk 0:02:56.1]} 9. Bxa6 {[%clk 0:02:54.4]} 9... Nxa6 {[%clk 0:02:57]} 10. Ne5
{[%clk 0:02:54.4]} 10... Nc7 {[%clk 0:02:54.6]} 11. f4 {[%clk 0:02:50.8]} 11...
Nce8 {[%clk 0:02:53.2]} 12. Rf3 {[%clk 0:02:46]} 12... Nd6 {[%clk 0:02:50.2]}
13. Rh3 {[%clk 0:02:45]} 13... Rc8 {[%clk 0:02:49.1]} 14. Bxf6 {[%clk
0:02:41.5]} 14... Bxf6 {[%clk 0:02:46.9]} 15. Qh5 {[%clk 0:02:41.4]} 15... h6
{[%clk 0:02:46.5]} 16. Ng4 {[%clk 0:02:31.6]} 16... Nf5 {[%clk 0:02:42.1]} 17.
Ne5 {[%clk 0:02:23.3]} 17... g6 {[%clk 0:02:33.2]} 18. Qf3 {[%clk 0:02:18.9]}
18... Bg7 {[%clk 0:02:31.9]} 19. g4 {[%clk 0:02:14.8]} 19... Nd6 {[%clk
0:02:30.4]} 20. Rg3 {[%clk 0:02:05.1]} 20... b5 {[%clk 0:02:24.1]} 21. a3 {[%clk
0:01:27.9]} 21... a5 {[%clk 0:02:21.1]} 22. dxc5 {[%clk 0:01:15.3]} 22... Rxc5
{[%clk 0:02:19.3]} 23. Nd3 {[%clk 0:01:15.5]} 23... Rc8 {[%clk 0:02:18.6]} 24.
Kg2 {[%clk 0:01:14.4]} 24... Nc4 {[%clk 0:02:15.7]} 25. Nb3 {[%clk 0:01:07.1]}
25... Nd6 {[%clk 0:02:06.2]} 26. Nd2 {[%clk 0:00:56.8]} 26... Qb6 {[%clk
0:02:03.9]} 27. h4 {[%clk 0:00:48.7]} 27... Ne4 {[%clk 0:01:25.8]} 28. Nxe4
{[%clk 0:00:39.4]} 28... dxe4 {[%clk 0:01:26.7]} 29. Qxe4 {[%clk 0:00:39.3]}
29... Rfd8 {[%clk 0:01:25.1]} 30. Rd1 {[%clk 0:00:30.7]} 30... Rc4 {[%clk
0:01:12.6]} 31. Qf3 {[%clk 0:00:26.7]} 31... Rc6 {[%clk 0:00:59.2]} 32. Nf2
{[%clk 0:00:18.9]} 32... Rcd6 {[%clk 0:00:58.4]} 33. Rxd6 {[%clk 0:00:18.8]}
33... Rxd6 {[%clk 0:00:59.3]} 34. h5 {[%clk 0:00:19.7]} 34... Rd2 {[%clk
0:00:56.6]} 35. hxg6 {[%clk 0:00:19.5]} 35... fxg6 {[%clk 0:00:56.8]} 36. Qe4
{[%clk 0:00:19.7]} 36... Kf7 {[%clk 0:00:41]} 37. f5 {[%clk 0:00:17.7]} 37...
exf5 {[%clk 0:00:39.7]} 38. gxf5 {[%clk 0:00:16]} 38... g5 {[%clk 0:00:40.3]}
39. Rf3 {[%clk 0:00:14.3]} 39... Bf6 {[%clk 0:00:38.8]} 40. Qg4 {[%clk
0:00:08.1]} 40... Bg7 {[%clk 0:00:21.4]} 41. Qh5+ {[%clk 0:00:07.9]} 41... Kg8
{[%clk 0:00:20.6]} 42. f6 {[%clk 0:00:07.3]} 42... Bxf6 {[%clk 0:00:14.3]} 43.
Qg6+ {[%clk 0:00:07.5]} 43... Kh8 {[%clk 0:00:08.6]} 44. Rxf6 {[%clk 0:00:07.3]}
44... Qb7+ {[%clk 0:00:08.6]} 45. Rf3 {[%clk 0:00:06.6]} 45... Rxb2 {[%clk
0:00:06.3]} 46. Qxh6+ {[%clk 0:00:05.7]} 46... Kg8 {[%clk 0:00:06.3]} 47. Qxg5+
{[%clk 0:00:06.2]} 47... Kh7 {[%clk 0:00:07.2]} 48. e4 {[%clk 0:00:05.8]} 48...
Re2 {[%clk 0:00:05.9]} 49. Rh3# {[%clk 0:00:05.8]} 1-0

[Event "Early-Titled-Tuesday-Blitz-December-26-2023"]
[Site "Chess.com"]
[Date "2023.12.26"]
[Round "9"]
[White "DeyanKostov"]
[Black "Lion-Al-Messi"]
[Result "0-1"]
[WhiteElo "2483"]
[BlackElo "2614"]
[TimeControl "180+1"]
[EndTime "9:46:05 PST"]
[Termination "Lion-Al-Messi won by resignation"]

1. d4 {[%clk 0:03:00.9]} 1... Nf6 {[%clk 0:02:59.6]} 2. c4 {[%clk 0:03:01.1]}
2... b6 {[%clk 0:02:59.9]} 3. Nc3 {[%clk 0:03:01.3]} 3... Bb7 {[%clk 0:02:59.8]}
4. d5 {[%clk 0:03:01.7]} 4... e6 {[%clk 0:02:57.9]} 5. a3 {[%clk 0:03:02.1]}
5... Bd6 {[%clk 0:02:56.1]} 6. e4 {[%clk 0:03:00.9]} 6... Be5 {[%clk 0:02:55]}
7. Nge2 {[%clk 0:03:00.9]} 7... exd5 {[%clk 0:02:42.8]} 8. exd5 {[%clk 0:03:00]}
8... Qe7 {[%clk 0:02:37.9]} 9. g3 {[%clk 0:02:16.7]} 9... O-O {[%clk 0:02:35.1]}
10. Bg2 {[%clk 0:02:16.6]} 10... Bxc3+ {[%clk 0:02:34.8]} 11. bxc3 {[%clk
0:02:16.4]} 11... Re8 {[%clk 0:02:34.9]} 12. Bf3 {[%clk 0:02:06.1]} 12... d6
{[%clk 0:02:25.7]} 13. O-O {[%clk 0:02:03.5]} 13... Nbd7 {[%clk 0:02:26.1]} 14.
Nd4 {[%clk 0:01:54.1]} 14... Ne5 {[%clk 0:02:26.3]} 15. Be2 {[%clk 0:01:52]}
15... Ba6 {[%clk 0:02:26]} 16. Qa4 {[%clk 0:01:50.7]} 16... Bc8 {[%clk
0:02:24.1]} 17. Bg5 {[%clk 0:01:33.9]} 17... Bh3 {[%clk 0:02:20.1]} 18. Rfe1
{[%clk 0:01:32.4]} 18... h6 {[%clk 0:02:18.7]} 19. Bf4 {[%clk 0:01:26]} 19...
Nd3 {[%clk 0:02:14.7]} 20. Nc6 {[%clk 0:01:07.7]} 20... Qe4 {[%clk 0:02:06.6]}
21. f3 {[%clk 0:01:07.2]} 21... Qg6 {[%clk 0:01:58.1]} 22. Bxd3 {[%clk 0:00:55]}
22... Qxd3 {[%clk 0:01:54.2]} 23. Qd1 {[%clk 0:00:36.4]} 23... Rxe1+ {[%clk
0:01:51.9]} 24. Qxe1 {[%clk 0:00:36.4]} 24... Re8 {[%clk 0:01:43.2]} 25. Qd2
{[%clk 0:00:23.6]} 25... Qxf3 {[%clk 0:01:38.9]} 26. Nd4 {[%clk 0:00:23.1]}
26... Qh5 {[%clk 0:01:29.8]} 27. Re1 {[%clk 0:00:22.7]} 27... Re4 {[%clk
0:01:17.8]} 28. Rxe4 {[%clk 0:00:17.5]} 28... Nxe4 {[%clk 0:01:18.7]} 29. Qe2
{[%clk 0:00:17.7]} 29... Qxe2 {[%clk 0:01:18.7]} 30. Nxe2 {[%clk 0:00:18.6]}
30... Bg4 {[%clk 0:01:19.1]} 31. Nd4 {[%clk 0:00:18]} 31... Nxc3 {[%clk
0:01:18.1]} 32. Kf2 {[%clk 0:00:17.5]} 32... Bd7 {[%clk 0:01:10.8]} 33. Ke1
{[%clk 0:00:13.9]} 33... Nb1 {[%clk 0:01:10.9]} 34. Bc1 {[%clk 0:00:12.8]} 34...
a5 {[%clk 0:01:05]} 35. Ke2 {[%clk 0:00:13]} 35... Nc3+ {[%clk 0:00:57.6]} 36.
Kd3 {[%clk 0:00:12.6]} 36... Na4 {[%clk 0:00:58.5]} 37. Be3 {[%clk 0:00:09]}
37... Nc5+ {[%clk 0:00:58.1]} 38. Kc2 {[%clk 0:00:08.7]} 38... f5 {[%clk
0:00:57.6]} 39. Ne2 {[%clk 0:00:07.6]} 39... g5 {[%clk 0:00:57.7]} 40. h4 {[%clk
0:00:07.3]} 40... Ne4 {[%clk 0:00:55.1]} 41. hxg5 {[%clk 0:00:06.3]} 41... hxg5
{[%clk 0:00:56]} 42. Kd3 {[%clk 0:00:06]} 42... Kf7 {[%clk 0:00:53.1]} 43. g4
{[%clk 0:00:06.5]} 43... Nc5+ {[%clk 0:00:51.3]} 44. Bxc5 {[%clk 0:00:06.1]}
44... dxc5 {[%clk 0:00:52.2]} 45. gxf5 {[%clk 0:00:06.4]} 45... Bxf5+ {[%clk
0:00:53.1]} 46. Ke3 {[%clk 0:00:06.2]} 46... Kf6 {[%clk 0:00:51.9]} 47. Nc3
{[%clk 0:00:06]} 47... Bd7 {[%clk 0:00:40.4]} 48. Ke4 {[%clk 0:00:06.4]} 48...
Be8 {[%clk 0:00:33.4]} 49. Kf3 {[%clk 0:00:05.1]} 49... Ke5 {[%clk 0:00:32.1]}
50. Ke3 {[%clk 0:00:05.2]} 50... g4 {[%clk 0:00:30.8]} 51. Ne4 {[%clk
0:00:04.9]} 51... Bg6 {[%clk 0:00:30]} 52. Ng3 {[%clk 0:00:05.5]} 52... a4
{[%clk 0:00:29]} 53. Ne2 {[%clk 0:00:05.4]} 53... Bc2 {[%clk 0:00:27.8]} 54. Nc1
{[%clk 0:00:03.1]} 54... Bb3 {[%clk 0:00:27.7]} 55. Nd3+ {[%clk 0:00:03.4]}
55... Kf5 {[%clk 0:00:27.4]} 56. Nb2 {[%clk 0:00:03.7]} 56... g3 {[%clk
0:00:23.7]} 57. Kf3 {[%clk 0:00:04.1]} 57... g2 {[%clk 0:00:23.8]} 58. Kxg2
{[%clk 0:00:04.5]} 58... Ke4 {[%clk 0:00:24.2]} 59. Kf2 {[%clk 0:00:05.2]} 59...
Kd4 {[%clk 0:00:24.4]} 0-1